bitfinex-derivatives/quotes_SOLF0:USTF0_20250117
["timestamp","ask_amount","ask_price","bid_price","bid_amount"]
[1737121245741,28.26222346,220.69,220.54,1.5203]
[1737121246451,4.533,220.62,220.54,1.5203]
[1737121246646,28.26222346,220.69,220.54,1.5203]
[1737121247147,28.26222346,220.69,220.53,1.4122]
[1737121247848,4.5336,220.59,220.53,5.9469]
[1737121248551,4.5336,220.59,220.53,1.4122]
[1737121248748,4.5336,220.59,220.54,4.5345]
[1737121249351,4.5336,220.59,220.53,5.9469]
[1737121249551,4.5334,220.6,220.53,1.4122]
[1737121250051,4.533,220.62,220.55,4.5343]
[1737121250354,187.0261196,220.67,220.53,1.4122]
[1737121250750,4.533,220.62,220.55,4.5342]
[1737121251054,187.0261196,220.67,220.53,1.4122]
[1737121251248,187.0261196,220.67,220.56,28.26222346]
[1737121251453,187.0261196,220.7,220.56,28.26222346]
[1737121252052,4.5321,220.66,220.56,28.26222346]
[1737121252253,187.0261196,220.7,220.56,28.26222346]
[1737121252751,187.0261196,220.7,220.56,32.79632346]
[1737121253149,187.0261196,220.69,220.56,32.79632346]
[1737121253347,4.5328,220.63,220.57,4.5338]
[1737121253550,187.0261196,220.69,220.56,28.26222346]
[1737121253948,4.5322,220.65,220.59,4.5334]
[1737121255050,28.26222346,220.72,220.56,28.26222346]
[1737121255558,28.26222346,220.72,220.56,32.79612346]
[1737121255559,4.533,220.62,220.56,32.79612346]
[1737121255956,4.533,220.62,220.56,28.26222346]
[1737121256657,28.26222346,220.72,220.56,28.26222346]
[1737121256857,187.0261196,220.73,220.7,28.26222346]
[1737121257047,7.75703612,220.73,220.71,5.56]
[1737121257248,144.91735572,220.74,220.71,5.56]
[1737121257451,30.01865812,220.74,220.71,5.56]
[1737121257649,1.5176,220.9,220.79,4.5293]
[1737121257852,28.26222346,221.04,220.84,28.26222346]
[1737121258059,249.3681595,221.06,220.89,28.26222346]
[1737121258060,1.5176,221.02,220.89,28.26222346]
[1737121258261,4.5253,220.99,220.9,5.56]
[1737121258456,1.5176,221.02,220.9,5.56]
[1737121258857,1.5176,221.02,220.93,28.26222346]
[1737121259563,1.5176,221.02,220.97,53.02099599]
[1737121259853,1.5176,221.02,220.97,24.75877253]
[1737121260059,4.525,221.01,220.98,42.84871134]
[1737121260260,1.5176,221.02,220.98,42.84871134]
[1737121260456,31.15532346,221.1,220.98,42.84871134]
[1737121260656,4.5233,221.09,220.98,42.84871134]
[1737121260854,2.8931,221.1,220.98,42.84871134]
[1737121261060,31.15532346,221.1,221.0,55.50973344]
[1737121261262,4.5248,221.02,221.0,40.70613344]
[1737121261460,4.5248,221.02,221.01,42.84994478]
[1737121261662,4.5248,221.02,221.01,35.88724478]
[1737121261964,28.26222346,221.06,220.98,4.816e-05]
[1737121262158,4.5253,220.99,220.98,4.816e-05]
[1737121262659,4.5258,220.97,220.87,5.56]
[1737121263159,4.5254,220.99,220.87,5.56]
[1737121263356,28.26222346,221.02,220.87,5.56]
[1737121263955,4.5251,221.0,220.87,5.56]
[1737121264161,4.5251,221.0,220.89,4.5273]
[1737121264559,28.26222346,221.02,220.87,5.56]
[1737121265160,28.26222346,221.02,220.77,2.97]
[1737121265161,28.26222346,220.98,220.83,4.5285]
[1737121265363,28.26222346,220.98,220.83,5.54]
[1737121265562,4.5265,220.93,220.83,5.54]
[1737121266368,4.527,220.91,220.83,5.54]
[1737121266763,28.26222346,220.98,220.83,5.54]
[1737121266960,194.0,221.01,220.84,28.26222346]
[1737121267469,4.5253,220.99,220.9,4.5271]
[1737121267658,194.0,221.01,220.84,28.26222346]
[1737121268666,194.0,221.01,220.85,5.39431267]
[1737121269063,194.0,221.01,220.86,1.409]
[1737121269260,28.26222346,221.02,220.86,6.80331267]
[1737121270267,28.26222346,221.02,220.87,5.39431267]
[1737121270860,28.26222346,221.02,220.89,4.5271]
[1737121271172,31.15532346,221.1,220.83,5.54]
[1737121271173,28.26222346,220.98,220.83,5.54]
[1737121271565,4.5261,220.95,220.84,5.5]
[1737121272066,4.5261,220.95,220.84,10.70274919]
[1737121272265,4.5263,220.94,220.84,10.70274919]
[1737121272472,28.26222346,220.98,220.85,5.5]
[1737121272675,4.5264,220.94,220.85,15.23084919]
[1737121272872,2.9836,220.97,220.85,10.70274919]
[1737121273772,2.9836,220.97,220.85,5.5]
[1737121274673,4.5266,220.93,220.87,4.5275]
[1737121274970,2.9836,220.97,220.86,5.20554286]
[1737121275769,2.9836,220.97,220.87,5.20554286]
[1737121276381,28.26222346,221.02,220.88,5.20554286]
[1737121277175,28.26222346,220.98,220.88,4.5275]
[1737121277369,28.26222346,220.98,220.85,5.5]
[1737121277772,4.526,220.96,220.85,5.5]
[1737121278379,4.5256,220.98,220.92,4.5266]
[1737121278783,28.26222346,221.02,220.85,5.5]
[1737121278981,4.5263,220.95,220.85,5.5]
[1737121279875,4.5267,220.93,220.82,17.31561034]
[1737121280071,17.31561034,221.01,220.86,4.5278]
[1737121280476,17.31561034,221.01,220.83,5.48]
[1737121280782,211.31561034,221.05,220.85,17.31561034]
[1737121280983,4.5255,220.98,220.85,17.31561034]
[1737121281177,4.5255,220.98,220.92,4.5265]
[1737121281384,4.5255,220.98,220.85,17.31561034]
[1737121281780,4.5255,220.98,220.92,4.5265]
[1737121282079,4.5248,221.02,220.93,5.48]
[1737121282275,2.8749,221.06,220.97,4.5255]
[1737121282678,4.5246,221.03,220.96,5.48]
[1737121282884,2.8749,221.06,221.0,4.525]
[1737121283577,17.31561034,221.1,221.0,4.525]
[1737121283777,4.5236,221.07,221.0,4.525]
[1737121283980,17.31561034,221.1,220.96,5.48]
[1737121284481,4.5234,221.08,221.02,4.5246]
[1737121284679,20.23341034,221.15,220.97,17.31561034]
[1737121284885,2.9178,221.15,220.97,17.31561034]
[1737121285080,4.5225,221.13,221.06,4.5238]
[1737121285979,2.9178,221.15,221.06,4.5238]
[1737121285980,194.0,221.2,221.06,5.46]
[1737121286988,4.5222,221.14,221.08,4.5232]
[1737121287186,17.31561034,221.21,221.07,105.37426323]
[1737121287687,4.5215,221.18,221.07,105.37426323]
[1737121288078,17.31561034,221.21,221.1,49.17035515]
[1737121288285,4.5218,221.16,221.11,4.5227]
[1737121288682,4.5218,221.16,221.12,24.94026282]
[1737121289182,2.8833,221.26,221.14,17.31561034]
[1737121289686,4.5212,221.19,221.13,24.94026282]
[1737121289886,2.8833,221.26,221.13,24.94026282]
[1737121290584,2.8833,221.26,221.17,49.17035515]
[1737121290784,2.8833,221.26,221.17,18.47249645]
[1737121291187,17.31561034,221.24,221.17,18.47249645]
[1737121291493,17.31561034,221.24,221.18,4.99329283]
[1737121291694,17.31561034,221.24,221.16,18.47249645]
[1737121292283,17.31561034,221.24,221.14,22.99459645]
[1737121292790,4.521,221.2,221.15,4.5219]
[1737121292991,1.4123,221.26,221.15,42.93318281]
[1737121293492,17.31561034,221.32,221.15,42.93318281]
[1737121293688,4.5203,221.24,221.19,4.5212]
[1737121293987,17.31561034,221.28,221.18,18.47249645]
[1737121294189,17.31561034,221.32,221.18,18.47249645]
[1737121294190,4.5212,221.19,221.18,18.47249645]
[1737121294888,4.5212,221.19,221.16,102.94325208]
[1737121294889,4.5214,221.18,221.17,18.47249645]
[1737121295789,4.5217,221.17,221.13,22.99469645]
[1737121295992,17.31561034,221.23,221.13,22.99469645]
[1737121296285,17.31561034,221.23,221.13,18.47249645]
[1737121296491,17.31561034,221.23,221.14,4.88369347]
[1737121297394,4.5222,221.14,221.11,18.47249645]
[1737121297895,17.31561034,221.23,221.11,18.47249645]
[1737121298085,17.31561034,221.27,221.11,18.47249645]
[1737121298289,17.31561034,221.27,221.12,4.85917579]
[1737121298491,17.31561034,221.27,221.15,4.5218]
[1737121298892,20.23571034,221.31,221.12,4.85917579]
[1737121299294,20.23571034,221.31,221.12,18.47249645]
[1737121299495,4.5206,221.22,221.18,4.5212]
[1737121299693,20.23571034,221.31,221.12,18.47249645]
[1737121299897,17.31561034,221.27,221.16,18.47249645]
[1737121300193,4.5216,221.17,221.16,18.47249645]
[1737121300403,17.31561034,221.27,221.12,18.47249645]
[1737121300693,17.31561034,221.27,221.13,4.5223]
[1737121301192,4.5216,221.18,221.13,4.5223]
[1737121301893,4.5216,221.18,221.11,35.78810679]
[1737121302092,4.5216,221.18,221.13,4.5224]
[1737121302392,4.5216,221.18,221.11,17.31561034]
[1737121302599,17.31561034,221.27,221.16,4.5217]
[1737121303100,4.5209,221.21,221.11,17.31561034]
[1737121303295,4.5209,221.21,221.16,4.5216]
[1737121303498,4.5209,221.21,221.11,17.31561034]
[1737121303697,4.5209,221.21,221.14,4.5222]
[1737121304003,4.5209,221.21,221.11,17.31561034]
[1737121304194,4.5212,221.19,221.11,17.31561034]
[1737121304500,17.31561034,221.27,221.11,17.31561034]
[1737121305200,4.5215,221.18,221.13,4.5223]
[1737121305502,17.31561034,221.27,221.11,17.31561034]
[1737121306306,4.5206,221.22,221.18,4.5213]
[1737121306793,4.5206,221.22,221.11,17.31561034]
[1737121306992,4.5208,221.21,221.16,4.5217]
[1737121307400,194.0,221.3,221.11,17.31561034]
[1737121307597,4.5203,221.24,221.11,17.31561034]
[1737121307801,194.0,221.3,221.11,17.31561034]
[1737121308205,4.5204,221.23,221.17,4.5214]
[1737121308401,20.23571034,221.31,221.15,17.31561034]
[1737121308601,20.23571034,221.31,221.16,4.4308]
[1737121310205,4.5201,221.25,221.16,4.4308]
[1737121310894,20.23571034,221.31,221.16,4.4308]
[1737121311094,4.5202,221.24,221.19,4.521]
[1737121311397,17.31561034,221.35,221.2,5.32]
[1737121311595,4.5198,221.26,221.21,4.5207]
[1737121311801,17.31561034,221.35,221.21,4.5207]
[1737121312005,4.5198,221.26,221.21,4.5207]
[1737121312303,17.31561034,221.35,221.2,5.32]
[1737121312501,4.5188,221.31,221.2,5.32]
[1737121312800,194.0,221.38,221.2,5.32]
[1737121313105,194.0,221.38,221.21,17.31561034]
[1737121313304,4.5189,221.31,221.26,4.5196]
[1737121313700,4.5189,221.31,221.21,17.31561034]
[1737121314100,4.5185,221.32,221.21,17.31561034]
[1737121314600,194.0,221.38,221.21,17.31561034]
[1737121314800,17.31561034,221.39,221.21,17.31561034]
[1737121315400,17.31561034,221.39,221.17,18.47249645]
[1737121315601,17.31561034,221.35,221.18,5.3]
[1737121315898,17.31561034,221.35,221.23,4.5203]
[1737121316103,2.8825,221.41,221.19,17.31561034]
[1737121316303,20.19811034,221.41,221.23,17.31561034]
[1737121316894,4.5179,221.36,221.3,4.5187]
[1737121317094,17.31561034,221.45,221.28,5.34]
[1737121317299,17.31561034,221.45,221.28,9.8153]
[1737121317796,4.5171,221.4,221.34,4.518]
[1737121318001,17.31561034,221.45,221.34,4.518]
[1737121318705,20.32461034,221.49,221.33,4.5183]
[1737121319009,4.5163,221.44,221.31,17.31561034]
[1737121319305,3.009,221.49,221.31,17.31561034]
[1737121319900,3.009,221.49,221.4,4.5168]
[1737121320206,17.31561034,221.54,221.39,5.34]
[1737121321103,4.5152,221.49,221.42,4.5164]
[1737121321401,17.31561034,221.54,221.39,5.34]
[1737121321606,17.31561034,221.58,221.39,22.65561034]
[1737121321807,4.5147,221.51,221.45,4.5158]
[1737121322007,2.9337,221.6,221.4,4.5107]
[1737121322211,17.31561034,221.58,221.4,4.5107]
[1737121323006,4.5147,221.51,221.4,4.5107]
[1737121323204,17.31561034,221.54,221.4,4.5107]
[1737121323406,4.5149,221.5,221.41,4.5165]
[1737121323605,17.31561034,221.54,221.4,4.5107]
[1737121324808,17.31561034,221.58,221.4,4.5107]
[1737121325711,4.5149,221.5,221.4,4.5107]
[1737121326605,4.5149,221.5,221.43,4.5163]
[1737121326910,4.5144,221.52,221.4,4.5107]
[1737121327110,17.31561034,221.58,221.44,4.5159]
[1737121327313,17.31561034,221.58,221.4,4.5107]
[1737121327611,17.31561034,221.58,221.44,4.5159]
[1737121327807,17.31561034,221.58,221.4,4.5107]
[1737121328003,4.5147,221.51,221.4,4.5107]
[1737121328211,4.5147,221.51,221.45,4.5158]
[1737121328412,1.4887,221.6,221.43,17.31561034]
[1737121329007,4.5138,221.55,221.43,17.31561034]
[1737121329610,1.4887,221.6,221.48,4.5151]
[1737121329912,1.4887,221.6,221.43,17.31561034]
[1737121330210,4.5134,221.58,221.44,5.28]
[1737121330410,4.5134,221.58,221.47,17.31561034]
[1737121331113,4.5138,221.55,221.47,17.31561034]
[1737121331318,17.31561034,221.62,221.47,17.31561034]
[1737121331512,17.31561034,221.62,221.5,4.5146]
[1737121332011,17.31561034,221.62,221.49,4.515]
[1737121332608,17.31561034,221.62,221.44,5.28]
[1737121332814,17.31561034,221.58,221.45,4.5157]
[1737121333009,17.31561034,221.58,221.44,5.28]
[1737121333211,4.515,221.5,221.44,5.28]
[1737121333416,17.31561034,221.58,221.45,4.5158]
[1737121333914,4.515,221.5,221.45,4.5158]
[1737121334413,17.31561034,221.58,221.44,5.28]
[1737121334612,17.31561034,221.51,221.4,2.9673]
[1737121335112,4.5153,221.48,221.4,2.9673]
[1737121335309,17.31561034,221.51,221.4,2.9673]
[1737121335913,17.31561034,221.51,221.37,4.5174]
[1737121336115,17.31561034,221.51,221.37,5.28]
[1737121336510,17.31561034,221.51,221.36,4.5175]
[1737121336511,2.889,221.5,221.36,4.5175]
[1737121336708,2.889,221.5,221.36,9.7775]
[1737121337314,2.889,221.5,221.35,1.4064]
[1737121338019,4.517,221.4,221.35,5.9242]
[1737121338414,4.517,221.4,221.35,4.5178]
[1737121339021,4.5171,221.39,221.35,4.5178]
[1737121339319,2.889,221.5,221.33,5.26]
[1737121339621,4.5158,221.46,221.34,17.31561034]
[1737121340017,4.5158,221.46,221.4,4.5167]
[1737121340920,4.5159,221.45,221.4,4.5167]
[1737121341421,194.0,221.53,221.38,17.31561034]
[1737121341621,4.5153,221.48,221.42,4.5163]
[1737121341918,17.31561034,221.58,221.39,5.26]
[1737121342116,4.5158,221.46,221.41,4.5165]
[1737121342419,194.0,221.57,221.39,5.26]
[1737121343023,194.0,221.57,221.4,5.26]
[1737121343320,4.5158,221.46,221.41,4.5165]
[1737121344517,194.0,221.57,221.4,5.26]
[1737121344721,4.5152,221.49,221.44,4.5161]
[1737121345520,4.5149,221.5,221.45,4.5158]
[1737121346523,4.5151,221.49,221.44,4.5161]
[1737121347016,194.0,221.57,221.42,20.31391034]
[1737121347620,4.5154,221.48,221.42,24.83041034]
[1737121348113,4.5156,221.47,221.42,24.83041034]
[1737121349220,4.5152,221.49,221.42,20.31391034]
[1737121349416,204.76624056,221.57,221.43,10.76624056]
[1737121350525,204.76624056,221.57,221.46,4.5155]
[1737121350925,204.76624056,221.57,221.43,10.76624056]
[1737121351114,194.0,221.57,221.46,10.76624056]
[1737121351518,2.9928,221.59,221.46,10.76624056]
[1737121351720,2.9928,221.59,221.52,4.5144]
[1737121351926,194.0,221.67,221.43,10.76624056]
[1737121351927,10.76624056,221.63,221.5,5.24]
[1737121352229,4.5134,221.58,221.54,4.514]
[1737121352424,4.5134,221.58,221.5,5.24]
[1737121352825,4.513,221.59,221.54,4.5139]
[1737121353026,13.64224056,221.66,221.52,10.76624056]
[1737121353424,4.5127,221.61,221.56,4.5135]
[1737121353628,13.64224056,221.66,221.52,10.76624056]
[1737121354129,4.5126,221.62,221.56,4.5136]
[1737121354325,13.64224056,221.66,221.56,4.5136]
[1737121354726,13.64224056,221.66,221.54,4.5138]
[1737121354926,13.64224056,221.66,221.52,10.76624056]
[1737121355123,194.0,221.72,221.56,10.76624056]
[1737121355422,3.0231,221.77,221.68,10.76624056]
[1737121355624,17.88603493,221.98,221.71,10.76624056]
[1737121355831,10.76624056,221.87,221.74,10.76624056]
[1737121356328,4.5082,221.83,221.76,4.5095]
[1737121356626,10.76624056,221.84,221.7,15.15184056]
[1737121357226,10.76624056,221.87,221.7,15.15184056]
[1737121357227,10.76624056,221.87,221.7,4.3856]
[1737121357429,17.17708589,221.91,221.73,17.17708589]
[1737121357828,4.5075,221.87,221.79,4.5089]
[1737121358030,4.5075,221.87,221.79,5.2]
[1737121358531,4.5071,221.89,221.82,4.5082]
[1737121358938,17.17708589,221.94,221.8,1.5053]
[1737121359736,4.5075,221.87,221.8,1.5053]
[1737121360137,17.17708589,221.94,221.8,1.5053]
[1737121360540,17.17708589,221.94,221.8,6.014]
[1737121361138,4.5074,221.87,221.8,6.014]
[1737121363341,17.17708589,221.94,221.8,6.014]
[1737121363641,4.5074,221.87,221.81,4.5085]
[1737121363944,17.17708589,221.94,221.81,4.5085]
[1737121364144,17.17708589,221.94,221.8,6.0139]
[1737121364541,3.0231,221.96,221.7,2.9636]
[1737121364542,17.17708589,221.9,221.73,17.17708589]
[1737121364746,17.17708589,221.9,221.75,4.5097]
[1737121365442,17.17708589,221.9,221.74,5.2]
[1737121365643,4.5084,221.82,221.76,4.5095]
[1737121366035,4.5084,221.82,221.77,4.5093]
[1737121366740,17.17708589,221.94,221.74,5.2]
[1737121366941,17.17708589,221.94,221.8,4.5087]
[1737121367442,4.5077,221.85,221.8,4.5087]
[1737121368145,17.17708589,221.94,221.74,5.2]
[1737121368647,4.5075,221.87,221.81,4.5084]
[1737121368847,194.0,221.95,221.82,5.2]
[1737121369343,3.0231,221.96,221.82,5.2]
[1737121369743,4.5067,221.9,221.86,4.5075]
[1737121369943,17.17708589,221.98,221.86,4.5075]
[1737121370348,4.5066,221.91,221.87,4.5073]
[1737121370549,17.17708589,221.98,221.83,1.4225]
[1737121371043,17.17708589,221.98,221.84,5.18]
[1737121371246,1.0,222.0,221.85,17.17708589]
[1737121371642,4.5052,221.98,221.85,17.17708589]
[1737121396209,207.61,221.87,221.85,17.17708589]
[1737121396405,128.93541686,221.94,221.85,17.17708589]
[1737121397407,16.5744,221.86,221.85,17.17708589]
[1737121449443,1.4717,221.86,221.85,17.17708589]
[1737121450045,10.72168909,221.87,221.85,17.17708589]
[1737121450641,10.72168909,221.9,221.85,17.17708589]
[1737121451043,4.5072,221.88,221.85,17.17708589]
[1737121451345,4.4624,221.92,221.85,17.17708589]
[1737121451750,3.0055,221.92,221.85,17.17708589]
[1737121452144,4.5062,221.93,221.86,4.5075]
[1737121453847,4.5062,221.93,221.85,17.17708589]
[1737121454247,4.5049,221.99,221.85,17.17708589]
[1737121454553,11.72168909,222.0,221.88,10.72168909]
[1737121454846,10.72168909,221.97,221.85,17.17708589]
[1737121455448,10.72168909,221.97,221.85,10.72168909]
[1737121455658,11.72168909,222.0,221.91,4.5063]
[1737121455952,11.72168909,222.0,221.88,10.72168909]
[1737121457047,4.5053,221.97,221.91,4.5064]
[1737121457255,11.72168909,222.0,221.85,10.72168909]
[1737121458555,4.5054,221.97,221.85,10.72168909]
[1737121458953,11.72168909,222.0,221.88,10.72168909]
[1737121459357,1.0,222.0,221.88,10.72168909]
[1737121460059,1.0,222.0,221.97,4.5053]
[1737121461353,1.0,222.0,221.92,3.0074]
[1737121461559,1.0,222.0,221.98,4.5051]
[1737121462859,1.0,222.0,221.92,4.517]
[1737121463059,1.0,222.0,221.99,4.5049]
[1737121463755,1.0,222.0,221.94,4.5058]
[1737121463961,1.0,222.0,221.92,4.517]
[1737121464353,1.0,222.0,221.97,4.5053]
[1737121465963,1.0,222.0,221.92,4.517]
[1737121466165,1.0,222.0,221.92,1.541]
[1737121466363,1.0,222.0,221.92,6.0473]
[1737121467259,4.5055,221.97,221.92,6.0473]
[1737121468464,4.5051,221.99,221.92,1.541]
[1737121469462,4.5051,221.99,221.94,4.5057]
[1737121469857,4.5051,221.99,221.95,4.5056]
[1737121470755,1.0,222.0,221.96,4.5053]
[1737121471462,1.0,222.0,221.92,1.541]
[1737121471660,1.0,222.0,221.98,4.5049]
[1737121472254,1.0,222.0,221.92,2.9473]
[1737121473064,1.0,222.0,221.97,4.5053]
[1737121473458,1.0,222.0,221.92,2.9473]
[1737121474962,1.0,222.0,221.93,4.5061]
[1737121475366,4.5052,221.98,221.94,4.5059]
[1737121476969,4.5052,221.98,221.95,4.5057]
[1737121477159,4.5052,221.98,221.92,2.9473]
[1737121478165,4.5053,221.97,221.94,4.5059]
[1737121479367,11.72168909,222.0,221.85,24.48505166]
[1737121479667,11.72168909,222.0,221.85,10.72168909]
[1737121479860,4.506,221.94,221.9,4.5067]
[1737121481165,11.72168909,222.0,221.88,10.72168909]
[1737121482167,4.5056,221.96,221.92,4.5061]
[1737121482461,4.5056,221.96,221.88,10.72168909]
[1737121483166,11.72168909,222.0,221.89,10.7092674]
[1737121483466,4.5053,221.97,221.89,10.7092674]
[1737121483668,1.0,222.0,221.89,10.7092674]
[1737121483863,4.505,221.99,221.91,10.72168909]
[1737121484562,4.505,221.99,221.95,4.5057]
[1737121485159,1.0,222.0,221.92,10.7092674]
[1737121485160,1.0,222.0,221.96,4.5053]
[1737121485970,1.0,222.0,221.99,4.5049]
[1737121486362,1.0,222.0,221.92,24.48505166]
[1737121486667,4.5051,221.98,221.92,24.48505166]
[1737121486862,1.0,222.0,221.93,6.12126291]
[1737121487170,1.0,222.0,221.94,4.5059]
[1737121487766,4.5051,221.99,221.94,4.5059]
[1737121489969,1.0,222.0,221.92,4.5063]
[1737121490469,4.5061,221.94,221.9,16.842952]
[1737121490668,4.5061,221.94,221.9,6.12126291]
[1737121491269,4.5061,221.94,221.89,7.3786]
[1737121493868,4.5061,221.94,221.89,2.8719]
[1737121494268,11.72168909,222.0,221.87,10.72168909]
[1737121494969,4.5066,221.91,221.87,10.72168909]
[1737121495368,4.5067,221.9,221.86,4.5074]
[1737121495667,10.72168909,221.96,221.83,10.72168909]
[1737121495868,10.72168909,221.96,221.82,2.9631]
[1737121496068,209.07748909,221.99,221.86,10.72168909]
[1737121496564,209.07748909,221.99,221.79,24.48505166]
[1737121496765,209.07748909,221.99,221.84,10.72168909]
[1737121497471,4.5068,221.9,221.84,10.72168909]
[1737121498165,4.5068,221.9,221.86,4.5073]
[1737121499873,4.507,221.89,221.85,4.5077]
[1737121500174,209.07748909,221.99,221.84,10.72168909]
[1737121500470,4.5077,221.86,221.84,10.72168909]
[1737121500670,10.72168909,221.96,221.84,10.72168909]
[1737121501062,4.5073,221.88,221.83,4.508]
[1737121501473,4.5073,221.88,221.82,10.72168909]
[1737121501772,10.72168909,221.96,221.85,4.5077]
[1737121501966,4.5066,221.91,221.85,10.72168909]
[1737121502473,4.5066,221.91,221.87,4.5071]
[1737121503274,4.5059,221.94,221.88,10.72168909]
[1737121503570,195.5084,221.99,221.88,10.72168909]
[1737121503771,4.506,221.94,221.88,10.72168909]
[1737121504273,4.5063,221.92,221.88,4.5069]
[1737121504470,206.23008909,221.99,221.85,10.72168909]
[1737121504670,195.5084,221.99,221.88,10.72168909]
[1737121504866,4.5061,221.94,221.89,4.5069]
[1737121505475,1.0,222.0,221.88,10.72168909]
[1737121505476,4.5057,221.96,221.88,10.72168909]
[1737121505774,1.0,222.0,221.88,10.72168909]
[1737121506564,4.5059,221.94,221.9,4.5067]
[1737121506773,1.0,222.0,221.88,10.72168909]
[1737121507475,4.5057,221.95,221.93,6.86337156]
[1737121507677,1.0,222.0,221.93,6.86337156]
[1737121507871,1.0,222.0,221.96,6.86337156]
[1737121508076,4.505,221.99,221.96,6.86337156]
[1737121508270,1.0,222.0,221.96,6.86337156]
[1737121508674,1.0,222.0,221.98,6.86337156]
[1737121509178,1.0,222.0,221.99,4.5049]
[1737121510780,1.0,222.0,221.97,10.71735303]
[1737121510781,10.71735303,222.17,221.98,10.71735303]
[1737121510978,10.71735303,222.17,222.03,10.71735303]
[1737121511179,4.5031,222.08,222.03,15.22125303]
[1737121511880,10.71735303,222.14,222.0,10.71735303]
[1737121512080,4.5043,222.02,221.98,1.5157]
[1737121512382,10.71735303,222.08,221.98,1.5157]
[1737121512581,10.71735303,222.08,221.94,10.71735303]
[1737121513172,4.5049,221.99,221.94,15.22325303]
[1737121513378,10.71735303,222.08,221.94,10.71735303]
[1737121513676,4.5051,221.98,221.94,10.71735303]
[1737121513881,10.71735303,222.08,221.94,10.71735303]
[1737121514279,4.5045,222.01,221.95,4.5055]
[1737121514482,10.71735303,222.08,221.94,10.71735303]
[1737121514981,10.71735303,222.08,221.95,4.5056]
[1737121515183,10.71735303,222.08,221.94,10.71735303]
[1737121515483,204.71735303,222.11,221.97,10.71735303]
[1737121517383,4.5039,222.04,222.0,4.5046]
[1737121517682,204.71735303,222.11,221.97,10.71735303]
[1737121518482,204.71735303,222.11,221.99,4.5047]
[1737121518682,204.71735303,222.11,221.97,10.71735303]
[1737121519083,4.5039,222.04,221.97,10.71735303]
[1737121519585,4.5039,222.04,221.99,4.5047]
[1737121519986,4.5039,222.04,222.0,50.0]
[1737121520686,4.5039,222.04,222.0,54.5047]
[1737121521089,4.5033,222.07,222.0,50.0]
[1737121521386,10.71735303,222.11,222.02,4.5042]
[1737121523192,4.5036,222.06,222.02,4.5042]
[1737121523491,10.71735303,222.11,222.0,50.0]
[1737121523692,1.394,222.12,222.0,60.71735303]
[1737121523983,4.5032,222.08,222.0,60.71735303]
[1737121524185,10.71735303,222.14,222.01,1.5325]
[1737121524584,4.5026,222.11,222.05,4.5036]
[1737121524784,10.71735303,222.14,222.01,1.5325]
[1737121525092,4.5031,222.09,222.04,4.5037]
[1737121525585,4.5031,222.08,222.04,4.5037]
[1737121526180,10.71735303,222.15,222.01,1.5325]
[1737121526383,4.5031,222.08,222.03,4.5041]
[1737121526585,4.5031,222.08,222.01,1.5325]
[1737121527191,4.5031,222.08,222.04,4.5037]
[1737121527590,10.71735303,222.15,222.01,1.5325]
[1737121527791,4.5028,222.1,222.06,4.5035]
[1737121528293,4.5029,222.09,222.05,4.5036]
[1737121529296,18.47395294,222.2,222.06,10.71735303]
[1737121529489,18.47395294,222.2,222.09,10.71735303]
[1737121529792,10.71735303,222.17,222.01,1.5325]
[1737121529992,10.71735303,222.17,222.02,10.71735303]
[1737121530191,4.5018,222.15,222.08,4.5029]
[1737121530392,18.47395294,222.2,222.08,10.71735303]
[1737121530596,10.71735303,222.19,222.05,10.71735303]
[1737121530894,4.5015,222.16,222.11,4.5023]
[1737121531104,18.47395294,222.2,222.08,10.71735303]
[1737121531293,4.502,222.14,222.09,4.5028]
[1737121531493,18.47395294,222.2,222.05,10.71735303]
[1737121531888,4.5023,222.12,222.07,4.5032]
[1737121532087,10.71735303,222.19,222.07,4.5032]
[1737121532489,4.5024,222.12,222.07,4.5032]